fUST/lending_fUST_20250902
["ID","MTS","AMOUNT","RATE_DAILY","PERIOD"]
[383001670,1756799175811,168.0,8.2e-07,2]
[383001671,1756799187246,203.89848199,0.00012928,2]
[383001672,1756799210770,203.89848199,0.00012928,2]
[383001673,1756799234148,203.89848199,0.00012928,2]
[383001674,1756799240134,-203.89848199,0.00013059,2]
[383001675,1756799240158,-158.71984996,0.00013187,2]
[383001676,1756799240181,-203.89848199,0.00013191,2]
[383001677,1756799240203,-246.71547896,0.00013287,2]
[383001678,1756799240225,-277.0,0.00013697,2]
[383001679,1756799240247,-300.0,0.00013697,2]
[383001680,1756799240269,-480.0,0.00013698,2]
[383001681,1756799240291,-480.0,0.00013698,2]
[383001682,1756799240311,-490.16,0.00013698,2]
[383001683,1756799240335,-966.50049,0.00013699,2]
[383001684,1756799240355,-300.0,0.00013751,2]
[383001685,1756799240379,-415.80116039,0.00013752,2]
[383001686,1756799240403,-480.0,0.00013752,2]
[383001687,1756799240429,-480.0,0.00013752,2]
[383001688,1756799240452,-480.0,0.00013752,2]
[383001689,1756799240477,-480.0,0.00013752,2]
[383001690,1756799240500,-760.2,0.00013752,2]
[383001691,1756799240523,-480.0,0.00013752,2]
[383001692,1756799240546,-480.0,0.00013752,2]
[383001693,1756799240567,-481.48,0.00013752,2]
[383001694,1756799240592,-480.0,0.00013752,2]
[383001695,1756799240611,-480.0,0.00013752,2]
[383001696,1756799240632,-480.0,0.00013752,2]
[383001697,1756799240654,-480.0,0.00013752,2]
[383001698,1756799240676,-1193.09,0.00013752,2]
[383001699,1756799240696,-480.0,0.00013752,2]
[383001700,1756799240716,-480.0,0.00013752,2]
[383001701,1756799240738,-480.0,0.00013752,2]
[383001702,1756799240760,-480.0,0.00013752,2]
[383001703,1756799240781,-544.11,0.00013752,2]
[383001704,1756799240802,-364.0803607,0.00013752,2]
[383001705,1756799240823,-480.0,0.00013752,2]
[383001706,1756799240847,-480.0,0.00013752,2]
[383001707,1756799240871,-417.15472785,0.00013753,2]
[383001708,1756799240894,-316.3878574,0.00013753,2]
[383001709,1756799240915,-160.0,0.00013753,2]
[383001710,1756799240936,-11369.04596444,0.00013753,2]
[383001711,1756799240956,-217.47380718,0.00013753,2]
[383001712,1756799240976,-160.0,0.00013753,2]
[383001713,1756799240997,-846.21894513,0.00013753,2]
[383001714,1756799241016,-232.87008258,0.00013753,2]
[383001715,1756799241035,-530.22964562,0.00013753,2]
[383001716,1756799241055,-191.60479976,0.00013773,2]
[383001717,1756799241076,-480.0,0.00013782,2]
[383001718,1756799241095,-438.70794929,0.00013782,2]
[383001719,1756799241114,-513.88761318,0.00013782,2]
[383001720,1756799241134,-480.0,0.00013782,2]
[383001721,1756799241156,-1530.29,0.00013782,2]
[383001722,1756799241178,-642.82,0.00013782,2]
[383001723,1756799241201,-480.0,0.00013782,2]
[383001724,1756799241221,-480.0,0.00013782,2]
[383001725,1756799241242,-480.0,0.00013782,2]
[383001726,1756799241264,-480.0,0.00013782,2]
[383001727,1756799241285,-480.0,0.00013782,2]
[383001728,1756799241307,-519.05,0.00013782,2]
[383001729,1756799241327,-308.76814943,0.00013831,2]
[383001730,1756799241348,-480.0,0.00013831,2]
[383001731,1756799241368,-480.0,0.00013831,2]
[383001732,1756799241388,-480.0,0.00013831,2]
[383001733,1756799241411,-480.0,0.00013831,2]
[383001734,1756799241434,-431.0,0.00013831,2]
[383001735,1756799241456,-1457.54,0.00013831,2]
[383001736,1756799241478,-324.26750671,0.00013831,2]
[383001737,1756799241499,-151.0,0.00013831,2]
[383001738,1756799241520,-480.0,0.00013831,2]
[383001739,1756799241542,-168.38250225,0.0001387,2]
[383001740,1756799241562,-151.0,0.00013871,2]
[383001741,1756799241583,-208.59827703,0.00013871,2]
[383001742,1756799241606,-500.0,0.00013871,2]
[383001743,1756799241631,-500.0,0.00013871,2]
[383001744,1756799241662,-252.22005917,0.00013871,2]
[383001745,1756799241689,-500.0,0.00013871,2]
[383001746,1756799241713,-500.0,0.00013871,2]
[383001747,1756799241738,-500.0,0.00013871,2]
[383001748,1756799241759,-151.0,0.00013872,2]
[383001749,1756799241927,-151.0,0.00013872,2]
[383001750,1756799241949,-151.0,0.00013872,2]
[383001751,1756799241971,-151.0,0.00013872,2]
[383001752,1756799241992,-151.0,0.00013872,2]
[383001753,1756799242013,-151.0,0.00013872,2]
[383001754,1756799242035,-151.0,0.00013872,2]
[383001755,1756799242056,-433.215315,0.00013872,2]
[383001756,1756799242078,-433.215315,0.00013872,2]
[383001757,1756799242100,-433.215315,0.00013872,2]
[383001758,1756799242121,-2054.39863158,0.00013872,2]
[383001759,1756799242144,-433.215315,0.00013872,2]
[383001760,1756799242166,-151.0,0.00013872,2]
[383001761,1756799242187,-151.0,0.00013872,2]
[383001762,1756799242209,-151.0,0.00013872,2]
[383001763,1756799242239,-151.0,0.00013872,2]
[383001764,1756799242264,-151.0,0.00013872,2]
[383001765,1756799242287,-279.356816,0.00013872,2]
[383001766,1756799242308,-151.0,0.00013872,2]
[383001767,1756799242331,-224450.11214069,0.00013872,2]
[383001768,1756799242354,-500.0,0.00013873,2]
[383001769,1756799242375,-500.0,0.00013873,2]
[383001770,1756799242396,-500.0,0.00013873,2]
[383001771,1756799242416,-500.0,0.00013873,2]
[383001772,1756799242438,-500.0,0.00013873,2]
[383001773,1756799242460,-500.0,0.00013873,2]
[383001774,1756799242481,-500.0,0.00013873,2]
[383001775,1756799242502,-217.84783093,0.00013972,2]
[383001776,1756799242524,-18599.9914174,0.00013972,2]
[383001777,1756799242547,-151.0,0.00013972,2]
[383001778,1756799242568,-151.0,0.00013972,2]
[383001779,1756799242598,-151.0,0.00013972,2]
[383001780,1756799242620,-151.0,0.00013972,2]
[383001781,1756799242641,-151.0,0.00013972,2]
[383001782,1756799242664,-151.0,0.00013972,2]
[383001783,1756799242685,-151.0,0.00013972,2]
[383001784,1756799242706,-162.180197,0.00013972,2]
[383001785,1756799242727,-151.0,0.00013972,2]
[383001786,1756799242749,-480.0,0.00013972,2]
[383001787,1756799242770,-151.0,0.00013972,2]
[383001788,1756799242793,-151.0,0.00013972,2]
[383001789,1756799242815,-184.965,0.00013972,2]
[383001790,1756799242837,-153.395359,0.00013972,2]
[383001791,1756799242859,-151.0,0.00013972,2]
[383001792,1756799242881,-480.0,0.00013972,2]
[383001793,1756799242903,-433.215315,0.00013972,2]
[383001794,1756799242925,-433.215315,0.00013972,2]
[383001795,1756799242947,-433.215315,0.00013972,2]
[383001796,1756799242969,-433.215315,0.00013972,2]
[383001797,1756799242990,-151.0,0.00013972,2]
[383001798,1756799243010,-151.0,0.00013972,2]
[383001799,1756799243034,-151.0,0.00013972,2]
[383001800,1756799243055,-490.16,0.00013972,2]
[383001801,1756799243079,-151.0,0.00013972,2]
[383001802,1756799243101,-3000.0,0.00014022,2]
[383001803,1756799243123,-480.0,0.00014026,2]
[383001804,1756799243146,-480.0,0.00014026,2]
[383001805,1756799243169,-433.215315,0.00014026,2]
[383001806,1756799243191,-433.215315,0.00014026,2]
[383001807,1756799243212,-433.215315,0.00014026,2]
[383001808,1756799243235,-433.215315,0.00014026,2]
[383001809,1756799243256,-151.0,0.00014026,2]
[383001810,1756799243277,-151.0,0.00014026,2]
[383001811,1756799243301,-480.0,0.00014026,2]
[383001812,1756799243331,-480.0,0.00014026,2]
[383001813,1756799243356,-760.2,0.00014026,2]
[383001814,1756799243381,-480.0,0.00014026,2]
[383001815,1756799243407,-480.0,0.00014026,2]
[383001816,1756799243430,-481.48,0.00014026,2]
[383001817,1756799243455,-480.0,0.00014026,2]
[383001818,1756799243479,-255.69533865,0.00014026,2]
[383001819,1756799243502,-387.50759371,0.00014026,2]
[383001820,1756799243525,-480.0,0.00014026,2]
[383001821,1756799243546,-151.0,0.00014026,2]
[383001822,1756799243571,-1193.09,0.00014026,2]
[383001823,1756799243592,-237.92511111,0.00014026,2]
[383001824,1756799243613,-480.0,0.00014026,2]
[383001825,1756799243636,-480.0,0.00014026,2]
[383001826,1756799243659,-480.0,0.00014026,2]
[383001827,1756799243685,-151.0,0.00014026,2]
[383001828,1756799243711,-544.11,0.00014026,2]
[383001829,1756799243739,-480.0,0.00014026,2]
[383001830,1756799243764,-480.0,0.00014026,2]
[383001831,1756799243790,-151.0,0.00014056,2]
[383001832,1756799243812,-151.0,0.00014056,2]
[383001833,1756799243833,-151.0,0.00014056,2]
[383001834,1756799243854,-554.95136787,0.00014056,2]
[383001835,1756799243876,-153.73572,0.00014056,2]
[383001836,1756799243897,-480.0,0.00014056,2]
[383001837,1756799243919,-1530.29,0.00014056,2]
[383001838,1756799243941,-642.82,0.00014056,2]
[383001839,1756799243962,-480.0,0.00014056,2]
[383001840,1756799243984,-480.0,0.00014056,2]
[383001841,1756799244005,-480.0,0.00014056,2]
[383001842,1756799244027,-480.0,0.00014056,2]
[383001843,1756799244049,-480.0,0.00014056,2]
[383001844,1756799244071,-519.05,0.00014056,2]
[383001845,1756799244092,-151.0,0.00014065,2]
[383001846,1756799244112,-151.0,0.00014065,2]
[383001847,1756799244133,-151.0,0.00014065,2]
[383001848,1756799244152,-151.0,0.00014065,2]
[383001849,1756799244173,-191.60479976,0.00014093,2]
[383001850,1756799244194,-431.0,0.00014105,2]
[383001851,1756799244215,-151.0,0.00014105,2]
[383001852,1756799244238,-480.0,0.00014105,2]
[383001853,1756799244259,-499.95439729,0.00014105,2]
[383001854,1756799244279,-487.51044789,0.00014105,2]
[383001855,1756799244301,-271.33233643,0.00014105,2]
[383001856,1756799244321,-1457.54,0.00014105,2]
[383001857,1756799244342,-480.0,0.00014105,2]
[383001858,1756799244362,-151.0,0.00014145,2]
[383001859,1756799244383,-151.0,0.00014165,2]
[383001860,1756799244404,-151.0,0.00014165,2]
[383001861,1756799244424,-975.0,0.00014165,2]
[383001862,1756799244445,-409.0,0.00014165,2]
[383001863,1756799244467,-423.672,0.00014165,2]
[383001864,1756799244487,-2153.0,0.00014165,2]
[383001865,1756799244506,-632.0,0.00014165,2]
[383001866,1756799244527,-4000.0,0.00014244,2]
[383001867,1756799244548,-151.0,0.00014246,2]
[383001868,1756799244569,-261.655352,0.00014246,2]
[383001869,1756799244597,-151.0,0.00014246,2]
[383001870,1756799244619,-151.0,0.00014246,2]
[383001871,1756799244641,-151.0,0.00014246,2]
[383001872,1756799244662,-151.0,0.00014246,2]
[383001873,1756799244683,-502.1601149,0.00014246,2]
[383001874,1756799244704,-480.0,0.00014246,2]
[383001875,1756799244725,-433.215315,0.00014246,2]
[383001876,1756799244748,-433.215315,0.00014246,2]
[383001877,1756799244769,-433.215315,0.00014246,2]
[383001878,1756799244792,-433.215315,0.00014246,2]
[383001879,1756799244815,-151.0,0.00014246,2]
[383001880,1756799244836,-490.16,0.00014246,2]
[383001881,1756799244864,-600.0,0.0001425,2]
[383001882,1756799244891,-300.0,0.0001425,2]
[383001883,1756799244916,-300.0,0.0001425,2]
[383001884,1756799244942,-300.0,0.0001425,2]
[383001885,1756799244968,-300.0,0.0001425,2]
[383001886,1756799244992,-300.0,0.0001425,2]
[383001887,1756799245019,-300.0,0.0001425,2]
[383001888,1756799245046,-300.0,0.0001425,2]
[383001889,1756799245067,-151.0,0.0001425,2]
[383001890,1756799245088,-525.1179179,0.000143,2]
[383001891,1756799245112,-480.0,0.000143,2]
[383001892,1756799245135,-433.215315,0.000143,2]
[383001893,1756799245156,-433.215315,0.000143,2]
[383001894,1756799245179,-433.215315,0.000143,2]
[383001895,1756799245202,-433.215311,0.000143,2]
[383001896,1756799245223,-151.0,0.000143,2]
[383001897,1756799245245,-480.0,0.000143,2]
[383001898,1756799245268,-480.0,0.000143,2]
[383001899,1756799245290,-760.2,0.000143,2]
[383001900,1756799245313,-480.0,0.000143,2]
[383001901,1756799245336,-480.0,0.000143,2]
[383001902,1756799245358,-481.48,0.000143,2]
[383001903,1756799245380,-480.0,0.000143,2]
[383001904,1756799245402,-480.0,0.000143,2]
[383001905,1756799245425,-156.16721009,0.000143,2]
[383001906,1756799245448,-1193.09,0.000143,2]
[383001907,1756799245470,-480.0,0.000143,2]
[383001908,1756799245492,-393.78880768,0.000143,2]
[383001909,1756799245515,-480.0,0.000143,2]
[383001910,1756799245538,-151.0,0.000143,2]
[383001911,1756799245562,-544.11,0.000143,2]
[383001912,1756799245584,-480.0,0.000143,2]
[383001913,1756799245606,-480.0,0.000143,2]
[383001914,1756799245627,-151.0,0.0001433,2]
[383001915,1756799245649,-151.0,0.0001433,2]
[383001916,1756799245671,-151.0,0.0001433,2]
[383001917,1756799245691,-151.0,0.0001433,2]
[383001918,1756799245713,-480.0,0.0001433,2]
[383001919,1756799245736,-1530.29,0.0001433,2]
[383001920,1756799245760,-642.82,0.0001433,2]
[383001921,1756799245913,-480.0,0.0001433,2]
[383001922,1756799245942,-480.0,0.0001433,2]
[383001923,1756799245965,-456.11748895,0.0001433,2]
[383001924,1756799245990,-480.0,0.0001433,2]
[383001925,1756799246013,-480.0,0.0001433,2]
[383001926,1756799246037,-519.05,0.0001433,2]
[383001927,1756799246059,-431.0,0.00014379,2]
[383001928,1756799246081,-198.0,0.00014379,2]
[383001929,1756799246103,-184.50737043,0.00014379,2]
[383001930,1756799246126,-1457.54,0.00014379,2]
[383001931,1756799246147,-446.51001331,0.00014379,2]
[383001932,1756799246168,-191.60479976,0.00014413,2]
[383001933,1756799246192,-198.0,0.00014419,2]
[383001934,1756799246214,-1000.0,0.00014421,2]
[383001935,1756799246233,-1000.0,0.00014421,2]
[383001936,1756799246255,-1000.0,0.00014421,2]
[383001937,1756799246277,-1000.0,0.00014421,2]
[383001938,1756799246299,-1000.0,0.00014421,2]
[383001939,1756799246319,-1000.0,0.00014421,2]
[383001940,1756799246340,-1000.0,0.00014421,2]
[383001941,1756799246361,-151.0,0.0001452,2]
[383001942,1756799246383,-151.0,0.0001452,2]
[383001943,1756799246404,-151.0,0.0001452,2]
[383001944,1756799246427,-480.0,0.0001452,2]
[383001945,1756799246448,-490.16,0.0001452,2]
[383001946,1756799246470,-480.0,0.00014574,2]
[383001947,1756799246491,-480.0,0.00014574,2]
[383001948,1756799246515,-480.0,0.00014574,2]
[383001949,1756799246537,-760.2,0.00014574,2]
[383001950,1756799246559,-480.0,0.00014574,2]
[383001951,1756799246585,-480.0,0.00014574,2]
[383001952,1756799246608,-481.48,0.00014574,2]
[383001953,1756799246631,-480.0,0.00014574,2]
[383001954,1756799246656,-480.0,0.00014574,2]
[383001955,1756799246679,-1193.09,0.00014574,2]
[383001956,1756799246701,-480.0,0.00014574,2]
[383001957,1756799246723,-480.0,0.00014574,2]
[383001958,1756799246749,-544.11,0.00014574,2]
[383001959,1756799246772,-480.0,0.00014574,2]
[383001960,1756799246794,-480.0,0.00014574,2]
[383001961,1756799246817,-480.0,0.00014604,2]
[383001962,1756799246842,-1530.29,0.00014604,2]
[383001963,1756799246865,-642.82,0.00014604,2]
[383001964,1756799246888,-480.0,0.00014604,2]
[383001965,1756799246911,-480.0,0.00014604,2]
[383001966,1756799246933,-480.0,0.00014604,2]
[383001967,1756799246956,-480.0,0.00014604,2]
[383001968,1756799246978,-519.05,0.00014604,2]
[383001969,1756799247000,-431.0,0.00014653,2]
[383001970,1756799247025,-1457.54,0.00014653,2]
[383001971,1756799247051,-168.0,0.00014696,2]
[383001972,1756799247073,-191.60479976,0.00014732,2]
[383001973,1756799247096,-480.0,0.00014794,2]
[383001974,1756799247117,-490.16,0.00014794,2]
[383001975,1756799247140,-480.0,0.00014848,2]
[383001976,1756799247163,-480.0,0.00014848,2]
[383001977,1756799247185,-480.0,0.00014848,2]
[383001978,1756799247207,-760.2,0.00014848,2]
[383001979,1756799247229,-222.57327567,0.00014848,2]
[383001980,1756799247250,-480.0,0.00014848,2]
[383001981,1756799247272,-481.48,0.00014848,2]
[383001982,1756799247294,-480.0,0.00014848,2]
[383001983,1756799247317,-480.0,0.00014848,2]
[383001984,1756799247341,-1193.09,0.00014848,2]
[383001985,1756799247363,-431.53952376,0.00014848,2]
[383001986,1756799247384,-480.0,0.00014848,2]
[383001987,1756799247408,-544.11,0.00014848,2]
[383001988,1756799247431,-480.0,0.00014848,2]
[383001989,1756799247453,-170.41637028,0.00014848,2]
[383001990,1756799247474,-480.0,0.00014878,2]
[383001991,1756799247497,-1530.29,0.00014878,2]
[383001992,1756799247519,-642.82,0.00014878,2]
[383001993,1756799247541,-480.0,0.00014878,2]
[383001994,1756799247562,-480.0,0.00014878,2]
[383001995,1756799247586,-480.0,0.00014878,2]
[383001996,1756799247608,-345.66699651,0.00014878,2]
[383002006,1756799432256,-281.95768232,0.00013614,2]
[383002008,1756799432269,-1409.52231768,0.00013614,2]
[383002010,1756799432278,-300.0,0.00013751,2]
[383002012,1756799432288,-480.0,0.00013752,2]
[383002014,1756799432298,-480.0,0.00013752,2]
[383002016,1756799432308,-539.57094177,0.00013752,2]
[383002019,1756799432318,-480.0,0.00013752,2]
[383002021,1756799432327,-508.9,0.00013752,2]
[383002022,1756799432337,-601.82,0.00013752,2]
[383002023,1756799432346,-480.0,0.00013752,2]
[383002024,1756799432357,-504.4893848,0.00013752,2]
[383002025,1756799432366,-480.0,0.00013752,2]
[383002026,1756799432375,-480.0,0.00013752,2]
[383002027,1756799432385,-538.94,0.00013752,2]
[383002028,1756799432394,-480.0,0.00013752,2]
[383002029,1756799432404,-480.0,0.00013752,2]
[383002030,1756799432413,-944.53,0.00013752,2]
[383002031,1756799432423,-480.0,0.00013752,2]
[383002032,1756799432432,-480.0,0.00013752,2]
[383002033,1756799432441,-480.0,0.00013752,2]
[383002034,1756799432451,-480.0,0.00013752,2]
[383002035,1756799432464,-1211.48,0.00013752,2]
[383002036,1756799432474,-417.15472785,0.00013762,2]
[383002037,1756799432485,-160.0,0.00013762,2]
[383002038,1756799432495,-316.3878574,0.00013762,2]
[383002039,1756799432504,-160.0,0.00013762,2]
[383002040,1756799432514,-217.47380718,0.00013762,2]
[383002041,1756799432524,-846.21894513,0.00013762,2]
[383002042,1756799432533,-480.0,0.00013782,2]
[383002043,1756799432543,-480.0,0.00014026,2]
[383002044,1756799432553,-480.0,0.00014026,2]
[383002045,1756799432563,-415.7058795,0.00014026,2]
[383002046,1756799432572,-508.9,0.00014026,2]
[383002047,1756799432582,-601.82,0.00014026,2]
[383002048,1756799432591,-480.0,0.00014026,2]
[383002049,1756799432600,-480.0,0.00014026,2]
[383002050,1756799432609,-480.0,0.00014026,2]
[383002051,1756799432619,-538.94,0.00014026,2]
[383002052,1756799432628,-480.0,0.00014026,2]
[383002053,1756799432637,-480.0,0.00014026,2]
[383002054,1756799432646,-944.53,0.00014026,2]
[383002055,1756799432656,-96.21008541,0.00014026,2]
[383002207,1756799441137,-2760.28350086,0.00013886,2]
[383002210,1756799441147,-383.78991459,0.00014026,2]
[383002211,1756799441156,-480.0,0.00014026,2]
[383002213,1756799441165,-480.0,0.00014026,2]
[383002215,1756799441174,-205.01358627,0.00014026,2]
[383002217,1756799441183,-1211.48,0.00014026,2]
[383002219,1756799441192,-480.0,0.00014056,2]
[383002221,1756799441201,-6001.27748895,0.00014187,2]
[383002223,1756799441210,-480.0,0.000143,2]
[383002225,1756799441222,-480.0,0.000143,2]
[383002227,1756799441231,-508.9,0.000143,2]
[383002229,1756799441240,-601.82,0.000143,2]
[383002231,1756799441249,-480.0,0.000143,2]
[383002233,1756799441258,-480.0,0.000143,2]
[383002235,1756799441267,-480.0,0.000143,2]
[383002237,1756799441276,-538.94,0.000143,2]
[383002239,1756799441285,-480.0,0.000143,2]
[383002241,1756799441295,-480.0,0.000143,2]
[383002243,1756799441304,-944.53,0.000143,2]
[383002245,1756799441313,-480.0,0.000143,2]
[383002247,1756799441322,-480.0,0.000143,2]
[383002249,1756799441331,-480.0,0.000143,2]
[383002251,1756799441340,-1211.48,0.000143,2]
[383002253,1756799441349,-480.0,0.0001433,2]
[383002255,1756799441358,-480.0,0.00014574,2]
[383002257,1756799441368,-206.12665919,0.00014574,2]
[383002259,1756799441377,-508.9,0.00014574,2]
[383002261,1756799441386,-601.82,0.00014574,2]
[383002263,1756799441396,-336.49002741,0.00014574,2]
[383002265,1756799441405,-480.0,0.00014574,2]
[383002267,1756799441414,-480.0,0.00014574,2]
[383002269,1756799441424,-538.94,0.00014574,2]
[383002271,1756799441433,-480.0,0.00014574,2]
[383002273,1756799441442,-480.0,0.00014574,2]
[383002275,1756799441451,-944.53,0.00014574,2]
[383002277,1756799441460,-480.0,0.00014574,2]
[383002279,1756799441473,-480.0,0.00014574,2]
[383002281,1756799441482,-480.0,0.00014574,2]
[383002283,1756799441491,-1211.48,0.00014574,2]
[383002285,1756799441500,-480.0,0.00014604,2]
[383002287,1756799441510,-8727.4667792,0.000147,2]
[383002289,1756799441520,-737.08075388,0.00014748,2]
[383002291,1756799441529,-500.0,0.00014847,2]
[383002293,1756799441538,-426.55404142,0.00014847,2]
[383002295,1756799441547,-500.0,0.00014847,2]
[383002297,1756799441556,-500.0,0.00014847,2]
[383002299,1756799441565,-50000.0,0.00014848,2]
[383002301,1756799441575,-480.0,0.00014848,2]
[383002303,1756799441584,-508.9,0.00014848,2]
[383002305,1756799441593,-601.82,0.00014848,2]
[383002307,1756799441602,-480.0,0.00014848,2]
[383002309,1756799441611,-480.0,0.00014848,2]
[383002311,1756799441620,-538.94,0.00014848,2]
[383002313,1756799441629,-480.0,0.00014848,2]
[383002315,1756799441639,-480.0,0.00014848,2]
[383002317,1756799441648,-944.53,0.00014848,2]
[383002319,1756799441657,-480.0,0.00014848,2]
[383002321,1756799441666,-480.0,0.00014848,2]
[383002323,1756799441676,-480.0,0.00014848,2]
[383002325,1756799441685,-1211.48,0.00014848,2]
[383002327,1756799441695,-191.60479976,0.00014868,2]
[383002329,1756799441704,-480.0,0.00014878,2]
[383002331,1756799441713,-530.22964562,0.00014925,2]
[383002333,1756799441724,-232.87008258,0.00014925,2]
[383002335,1756799441733,-431.0,0.00014927,2]
[383002337,1756799441742,-1457.54,0.00014927,2]
[383002339,1756799441751,-10572.73509974,0.0001493,2]
[383002341,1756799441761,-1500.0,0.00014968,2]
[383002343,1756799441770,-1500.0,0.00014968,2]
[383002345,1756799441779,-160.0,0.00015,2]
[383002347,1756799441788,-490.16,0.00015068,2]
[383002349,1756799441797,-420.0,0.00015069,2]
[383002351,1756799441808,-544.11,0.00015122,2]
[383002353,1756799441823,-480.0,0.00015122,2]
[383002355,1756799441833,-480.0,0.00015122,2]
[383002357,1756799441844,-508.9,0.00015122,2]
[383002360,1756799441855,-601.82,0.00015122,2]
[383002362,1756799441864,-480.0,0.00015122,2]
[383002363,1756799441873,-480.0,0.00015122,2]
[383002365,1756799441882,-538.94,0.00015122,2]
[383002367,1756799441891,-182.11961812,0.00015122,2]
[383002370,1756799441904,-297.88038188,0.00015122,2]
[383002372,1756799441913,-480.0,0.00015122,2]
[383002374,1756799441923,-944.53,0.00015122,2]
[383002376,1756799441934,-480.0,0.00015122,2]
[383002378,1756799441943,-480.0,0.00015122,2]
[383002380,1756799441952,-480.0,0.00015122,2]
[383002382,1756799441965,-1211.48,0.00015122,2]
[383002385,1756799441979,-480.0,0.00015152,2]
[383002386,1756799441989,-431.0,0.00015201,2]
[383002388,1756799441998,-1457.54,0.00015201,2]
[383002390,1756799442007,-600.0,0.00015267,2]
[383002392,1756799442016,-159.99477125,0.00015331,2]
[383002394,1756799442025,-490.16,0.00015342,2]
[383002396,1756799442035,-544.11,0.00015396,2]
[383002398,1756799442044,-480.0,0.00015396,2]
[383002400,1756799442053,-480.0,0.00015396,2]
[383002402,1756799442064,-508.9,0.00015396,2]
[383002404,1756799442073,-601.82,0.00015396,2]
[383002407,1756799442083,-480.0,0.00015396,2]
[383002409,1756799442094,-480.0,0.00015396,2]
[383002411,1756799442110,-538.94,0.00015396,2]
[383002413,1756799442120,-480.0,0.00015396,2]
[383002415,1756799442130,-480.0,0.00015396,2]
[383002417,1756799442140,-944.53,0.00015396,2]
[383002419,1756799442149,-480.0,0.00015396,2]
[383002420,1756799442159,-151.0,0.00015396,2]
[383002422,1756799442168,-480.0,0.00015396,2]
[383002425,1756799442178,-480.0,0.00015396,2]
[383002427,1756799442188,-1211.48,0.00015396,2]
[383002429,1756799442197,-480.0,0.00015426,2]
[383002431,1756799442208,-431.0,0.00015475,2]
[383002433,1756799442220,-1457.54,0.00015475,2]
[383002435,1756799442230,-2000.0,0.00015516,2]
[383002436,1756799442239,-2000.0,0.00015516,2]
[383002438,1756799442248,-480.0,0.00015616,2]
[383002440,1756799442258,-490.16,0.00015616,2]
[383002442,1756799442268,-544.11,0.0001567,2]
[383002444,1756799442277,-480.0,0.0001567,2]
[383002446,1756799442286,-480.0,0.0001567,2]
[383002448,1756799442295,-508.9,0.0001567,2]
[383002450,1756799442304,-601.82,0.0001567,2]
[383002452,1756799442313,-480.0,0.0001567,2]
[383002454,1756799442323,-480.0,0.0001567,2]
[383002456,1756799442332,-538.94,0.0001567,2]
[383002458,1756799442341,-480.0,0.0001567,2]
[383002460,1756799442350,-480.0,0.0001567,2]
[383002462,1756799442359,-944.53,0.0001567,2]
[383002464,1756799442368,-480.0,0.0001567,2]
[383002466,1756799442377,-480.0,0.0001567,2]
[383002468,1756799442388,-480.0,0.0001567,2]